fUST/lending_fUST_20260118
["ID","MTS","AMOUNT","RATE_DAILY","PERIOD"]
[402481089,1768684247930,-656.88,0.00016438,3]
[402481091,1768684247939,-538.58,0.00016438,3]
[402481093,1768684247949,-500.0,0.00016438,3]
[402481095,1768684247960,-263.30228,0.00016438,2]
[402481097,1768684247970,-500.0,0.00016438,3]
[402481099,1768684247979,-661.06,0.00016438,3]
[402481101,1768684247988,-500.0,0.00016438,3]
[402481103,1768684247998,-545.8035631,0.00016438,3]
[402481105,1768684248007,-500.0,0.00016438,3]
[402481107,1768684248017,-500.0,0.00016438,3]
[402481109,1768684248027,-500.0,0.00016438,3]
[402481111,1768684248036,-500.0,0.00016438,3]
[402481113,1768684248045,-694.74,0.00016438,3]
[402481115,1768684248054,-500.0,0.00016438,3]
[402481117,1768684248065,-500.0,0.00016438,3]
[402481119,1768684248073,-936.78,0.00016438,3]
[402481121,1768684248082,-500.0,0.00016438,3]
[402481123,1768684248091,-872.79,0.00016438,3]
[402481125,1768684248101,-659.86,0.00016438,3]
[402481127,1768684248111,-500.0,0.00016438,3]
[402481129,1768684248121,-500.0,0.00016438,3]
[402481131,1768684248130,-775.8,0.00016438,3]
[402481133,1768684248139,-500.0,0.00016438,3]
[402481134,1768684248149,-500.0,0.00016438,3]
[402481137,1768684248159,-1375.31,0.00016438,3]
[402481138,1768684248168,-543.38,0.00016438,3]
[402481140,1768684248177,-500.0,0.00016438,3]
[402481142,1768684248187,-500.0,0.00016438,3]
[402481144,1768684248198,-500.0,0.00016438,3]
[402481147,1768684248207,-500.0,0.00016438,3]
[402481148,1768684248216,-500.0,0.00016438,3]
[402481151,1768684248226,-309.96810054,0.00016438,3]
[402481152,1768684248236,-597.06,0.00016438,3]
[402481155,1768684248245,-500.0,0.00016438,3]
[402481156,1768684248255,-500.0,0.00016438,3]
[402481159,1768684248264,-1329.82,0.00016438,3]
[402481161,1768684248273,-500.0,0.00016438,3]
[402481163,1768684248283,-500.0,0.00016438,3]
[402481164,1768684248292,-423.66716387,0.00016438,3]
[402481166,1768684248301,-609.19,0.00016438,3]
[402481168,1768684248310,-1212.6,0.00016438,3]
[402481170,1768684248319,-500.0,0.00016438,3]
[402481172,1768684248328,-596.66,0.00016438,3]
[402481174,1768684248337,-658.84,0.00016438,3]
[402481176,1768684248347,-979.4,0.00016438,3]
[402481178,1768684248356,-1151.82,0.00016438,3]
[402481180,1768684248364,-500.0,0.00016438,3]
[402481182,1768684248374,-513.00114578,0.00016438,3]
[402481184,1768684248383,-500.0,0.00016438,3]
[402481186,1768684248392,-500.0,0.00016438,3]
[402481188,1768684248402,-500.0,0.00016438,3]
[402481190,1768684248411,-1644.95,0.00016438,3]
[402481192,1768684248421,-822.5,0.00016438,3]
[402481194,1768684248430,-500.0,0.00016438,3]
[402481196,1768684248440,-500.0,0.00016438,3]
[402481198,1768684248450,-500.0,0.00016438,3]
[402481200,1768684248459,-332.91217118,0.00016438,3]
[402481202,1768684248469,-500.0,0.00016438,3]
[402481204,1768684248478,-500.0,0.00016438,3]
[402481206,1768684248487,-500.0,0.00016438,3]
[402481208,1768684248498,-1323.23,0.00016438,3]
[402481210,1768684248507,-500.0,0.00016438,3]
[402481212,1768684248516,-927.12,0.00016438,3]
[402481214,1768684248525,-738.57,0.00016438,3]
[402481216,1768684248535,-500.0,0.00016438,3]
[402481218,1768684248543,-500.0,0.00016438,3]
[402481220,1768684248552,-500.0,0.00016438,3]
[402481222,1768684248562,-500.0,0.00016438,2]
[402481224,1768684248571,-500.0,0.00016438,3]
[402481226,1768684248580,-1087.65,0.00016438,3]
[402481228,1768684248590,-500.0,0.00016438,3]
[402481230,1768684248599,-632.04690666,0.00016438,3]
[402481232,1768684248609,-500.0,0.00016438,3]
[402481234,1768684248618,-500.0,0.00016438,3]
[402481236,1768684248627,-500.0,0.00016438,3]
[402481238,1768684248636,-500.0,0.00016438,2]
[402481240,1768684248645,-500.0,0.00016438,3]
[402481242,1768684248654,-500.0,0.00016438,3]
[402481244,1768684248663,-500.0,0.00016438,3]
[402481246,1768684248674,-500.0,0.00016438,3]
[402481248,1768684248683,-500.0,0.00016438,3]
[402481250,1768684248692,-500.0,0.00016438,3]
[402481252,1768684248701,-1175.75,0.00016438,3]
[402481254,1768684248710,-500.0,0.00016438,3]
[402481256,1768684248723,-500.0,0.00016438,3]
[402481257,1768684248732,-500.0,0.00016438,3]
[402481259,1768684248742,-500.0,0.00016438,2]
[402481262,1768684248752,-500.0,0.00016438,3]
[402481263,1768684248761,-647.35,0.00016438,3]
[402481265,1768684248770,-500.0,0.00016438,3]
[402481267,1768684248779,-500.0,0.00016438,3]
[402481270,1768684248791,-500.0,0.00016438,3]
[402481272,1768684248801,-500.0,0.00016438,3]
[402481274,1768684248810,-500.0,0.00016438,3]
[402481275,1768684248820,-500.0,0.00016438,3]
[402481278,1768684248830,-2390.17,0.00016438,3]
[402481279,1768684248840,-500.0,0.00016438,3]
[402481281,1768684248850,-500.0,0.00016438,3]
[402481283,1768684248859,-1256.22,0.00016438,3]
[402481286,1768684248869,-500.0,0.00016438,3]
[402481287,1768684248879,-2319.11,0.00016438,3]
[402481289,1768684248888,-777.53,0.00016438,3]
[402481291,1768684248898,-728.77,0.00016438,3]
[402481293,1768684248908,-500.0,0.00016438,3]
[402481296,1768684248919,-500.0,0.00016438,3]
[402481298,1768684248929,-500.0,0.00016438,3]
[402481300,1768684248939,-500.0,0.00016438,3]
[402481301,1768684248950,-500.0,0.00016438,3]
[402481303,1768684248959,-500.0,0.00016438,3]
[402481305,1768684248969,-500.0,0.00016438,2]
[402481307,1768684248979,-151.0,0.00016438,2]
[402481309,1768684248988,-151.0,0.00016438,2]
[402481311,1768684248997,-151.0,0.00016438,2]
[402481313,1768684249007,-151.0,0.00016438,2]
[402481315,1768684249016,-377.8688684,0.00016466,2]
[402481317,1768684249024,-250.0,0.00016551,2]
[402481319,1768684249033,-500.0,0.00016575,3]
[402481321,1768684249042,-388.6599918,0.0001664,2]
[402481323,1768684249052,-811.0,0.00016643,2]
[402481325,1768684249061,-1194.0,0.00016678,2]
[402481327,1768684249071,-392.4396246,0.00016712,2]
[402481329,1768684249081,-153.0,0.00016712,2]
[402481331,1768684249090,-250.0,0.00016712,3]
[402481333,1768684249100,-500.0,0.00016712,3]
[402481335,1768684249110,-375.74267637,0.00016712,3]
[402481337,1768684249119,-500.0,0.00016712,3]
[402481339,1768684249129,-500.0,0.00016712,3]
[402481341,1768684249138,-500.0,0.00016712,3]
[402481343,1768684249149,-500.0,0.00016712,3]
[402481345,1768684249159,-500.0,0.00016712,3]
[402481347,1768684249168,-500.0,0.00016712,3]
[402481349,1768684249178,-500.0,0.00016712,3]
[402481351,1768684249188,-500.0,0.00016712,3]
[402481353,1768684249197,-500.0,0.00016712,3]
[402481355,1768684249207,-500.0,0.00016712,3]
[402481357,1768684249216,-500.0,0.00016712,3]
[402481359,1768684249225,-500.0,0.00016712,3]
[402481361,1768684249235,-510.09347373,0.00016712,3]
[402481363,1768684249245,-500.0,0.00016712,3]
[402481365,1768684249256,-500.0,0.00016712,3]
[402481368,1768684249267,-500.0,0.00016712,3]
[402481370,1768684249276,-695.27,0.00016712,3]
[402481372,1768684249285,-500.0,0.00016712,3]
[402481374,1768684249295,-500.0,0.00016712,3]
[402481375,1768684249304,-500.0,0.00016712,3]
[402481378,1768684249314,-500.0,0.00016712,3]
[402481379,1768684249324,-500.0,0.00016712,3]
[402481382,1768684249334,-893.97,0.00016712,3]
[402481383,1768684249343,-500.0,0.00016712,3]
[402481385,1768684249353,-500.0,0.00016712,3]
[402481388,1768684249363,-500.0,0.00016712,3]
[402481389,1768684249373,-907.15,0.00016712,3]
[402481391,1768684249382,-500.0,0.00016712,3]
[402481394,1768684249392,-500.0,0.00016712,2]
[402481396,1768684249402,-500.0,0.00016712,3]
[402481398,1768684249413,-500.0,0.00016712,3]
[402481400,1768684249423,-500.0,0.00016712,3]
[402481402,1768684249433,-1000.0,0.00016712,2]
[402481403,1768684249442,-500.0,0.00016712,3]
[402481406,1768684249452,-500.0,0.00016712,3]
[402481408,1768684249462,-500.0,0.00016712,3]
[402481410,1768684249471,-500.0,0.00016712,3]
[402481412,1768684249481,-128.13117857,0.00016712,3]
[402481471,1768684250125,-434.47876755,0.00016438,3]
[402481473,1768684250137,-147.62123245,0.00016438,3]
[402481475,1768684250148,-486.84882143,0.00016712,3]
[402481477,1768684250158,-84.45031367,0.00016712,3]
[402481513,1768684250482,-500.0,0.00016438,3]
[402481515,1768684250492,-500.0,0.00016438,3]
[402481517,1768684250502,-415.54968633,0.00016712,3]
[402481519,1768684250511,-30.14361365,0.00016712,3]
[402481586,1768684251141,-469.85638635,0.00016712,3]
[402481588,1768684251151,-811.02,0.00016712,3]
[402481590,1768684251160,-500.0,0.00016712,3]
[402481592,1768684251170,-500.0,0.00016712,3]
[402481594,1768684251180,-755.61,0.00016712,3]
[402481596,1768684251189,-500.0,0.00016712,3]
[402481598,1768684251199,-500.0,0.00016712,3]
[402481600,1768684251208,-500.0,0.00016712,3]
[402481602,1768684251218,-500.0,0.00016712,3]
[402481604,1768684251228,-500.0,0.00016712,3]
[402481606,1768684251237,-500.0,0.00016712,3]
[402481609,1768684251247,-500.0,0.00016712,3]
[402481610,1768684251257,-500.0,0.00016712,3]
[402481613,1768684251266,-500.0,0.00016712,3]
[402481615,1768684251275,-500.0,0.00016712,3]
[402481617,1768684251285,-500.0,0.00016712,3]
[402481619,1768684251295,-500.0,0.00016712,3]
[402481621,1768684251304,-500.0,0.00016712,3]
[402481623,1768684251314,-500.0,0.00016712,3]
[402481625,1768684251324,-505.83,0.00016712,3]
[402481627,1768684251333,-500.0,0.00016712,3]
[402481629,1768684251343,-500.0,0.00016712,3]
[402481631,1768684251353,-500.0,0.00016712,3]
[402481633,1768684251363,-1380.33,0.00016712,3]
[402481635,1768684251372,-500.0,0.00016712,3]
[402481637,1768684251381,-500.0,0.00016712,3]
[402481639,1768684251391,-500.0,0.00016712,3]
[402481641,1768684251400,-500.0,0.00016712,3]
[402481643,1768684251411,-500.0,0.00016712,3]
[402481645,1768684251421,-500.0,0.00016712,3]
[402481647,1768684251431,-500.0,0.00016712,3]
[402481649,1768684251440,-1106.79,0.00016712,3]
[402481651,1768684251450,-500.0,0.00016712,3]
[402481653,1768684251460,-533.25,0.00016712,3]
[402481655,1768684251469,-500.0,0.00016712,3]
[402481657,1768684251478,-500.0,0.00016712,3]
[402481660,1768684251489,-500.0,0.00016712,3]
[402481662,1768684251500,-637.21,0.00016712,3]
[402481664,1768684251509,-500.0,0.00016712,3]
[402481666,1768684251518,-500.0,0.00016712,3]
[402481668,1768684251528,-304.69534223,0.00016712,3]
[402481670,1768684251538,-642.42,0.00016712,3]
[402481672,1768684251547,-500.0,0.00016712,3]
[402481674,1768684251556,-704.85,0.00016712,3]
[402481676,1768684251565,-500.0,0.00016712,3]
[402481678,1768684251575,-500.0,0.00016712,3]
[402481680,1768684251584,-500.0,0.00016712,3]
[402481682,1768684251593,-500.0,0.00016712,3]
[402481684,1768684251603,-500.0,0.00016712,3]
[402481686,1768684251613,-801.52,0.00016712,3]
[402481688,1768684251623,-500.0,0.00016712,3]
[402481690,1768684251632,-574.969696,0.00016712,3]
[402481692,1768684251642,-500.0,0.00016712,3]
[402481694,1768684251651,-216.1398381,0.00016712,3]
[402481696,1768684251661,-500.0,0.00016712,3]
[402481698,1768684251670,-500.0,0.00016712,3]
[402481700,1768684251680,-500.0,0.00016712,3]
[402481702,1768684251689,-553.03,0.00016712,3]
[402481704,1768684251698,-500.0,0.00016712,3]
[402481706,1768684251708,-552.35,0.00016712,3]
[402481708,1768684251721,-500.0,0.00016712,3]
[402481710,1768684251731,-500.0,0.00016712,3]
[402481712,1768684251740,-597.25,0.00016712,3]
[402481714,1768684251751,-1219.79,0.00016712,3]
[402481716,1768684251761,-604.07,0.00016712,3]
[402481718,1768684251771,-500.0,0.00016712,3]
[402481720,1768684251781,-500.0,0.00016712,3]
[402481722,1768684251792,-576.72,0.00016712,3]
[402481724,1768684251801,-500.0,0.00016712,3]
[402481726,1768684251810,-500.0,0.00016712,3]
[402481728,1768684251820,-500.0,0.00016712,3]
[402481730,1768684251830,-500.0,0.00016712,3]
[402481732,1768684251838,-500.0,0.00016712,3]
[402481734,1768684251848,-805.71,0.00016712,3]
[402481736,1768684251857,-500.0,0.00016712,3]
[402481738,1768684251868,-500.0,0.00016712,3]
[402481740,1768684251876,-500.0,0.00016712,3]
[402481742,1768684251886,-1123.61,0.00016712,3]
[402481744,1768684251895,-834.54,0.00016712,3]
[402481747,1768684251905,-474.92477012,0.00016712,3]
[402481749,1768684251915,-500.0,0.00016712,3]
[402481751,1768684251924,-500.0,0.00016712,3]
[402481753,1768684251933,-500.0,0.00016712,3]
[402481755,1768684251942,-500.0,0.00016712,3]
[402481757,1768684251951,-1041.46,0.00016712,3]
[402481759,1768684251961,-500.0,0.00016712,3]
[402481761,1768684251969,-500.0,0.00016712,3]
[402481762,1768684251978,-500.0,0.00016712,3]
[402481765,1768684251988,-500.0,0.00016712,3]
[402481767,1768684251997,-1078.53,0.00016712,3]
[402481769,1768684252007,-500.0,0.00016712,3]
[402481771,1768684252017,-500.0,0.00016712,3]
[402481773,1768684252025,-500.0,0.00016712,3]
[402481775,1768684252034,-500.0,0.00016712,3]
[402481777,1768684252043,-1440.8,0.00016712,3]
[402481779,1768684252052,-500.0,0.00016712,3]
[402481781,1768684252062,-1112.25,0.00016712,3]
[402481783,1768684252072,-500.0,0.00016712,3]
[402481785,1768684252081,-500.2501329,0.00016712,3]
[402481787,1768684252091,-586.6276719,0.00016712,3]
[402481789,1768684252100,-500.0,0.00016712,3]
[402481791,1768684252110,-246.89631936,0.00016712,3]
[402481793,1768684252120,-500.0,0.00016712,3]
[402481795,1768684252129,-500.0,0.00016712,3]
[402481797,1768684252139,-500.0,0.00016712,3]
[402481799,1768684252148,-500.0,0.00016712,3]
[402481801,1768684252158,-500.0,0.00016712,3]
[402481803,1768684252168,-500.0,0.00016712,3]
[402481805,1768684252177,-500.0,0.00016712,3]
[402481807,1768684252186,-500.0,0.00016712,3]
[402481809,1768684252196,-524.77564492,0.00016712,3]
[402481811,1768684252206,-1100.67,0.00016712,3]
[402481813,1768684252215,-500.0,0.00016712,3]
[402481815,1768684252225,-151.0,0.00016712,2]
[402481817,1768684252234,-500.0,0.00016712,3]
[402481819,1768684252244,-500.0,0.00016712,3]
[402481821,1768684252254,-968.96,0.00016712,3]
[402481823,1768684252264,-817.35,0.00016712,3]
[402481825,1768684252273,-553.08,0.00016712,3]
[402481827,1768684252283,-500.0,0.00016712,3]
[402481829,1768684252294,-500.0,0.00016712,3]
[402481831,1768684252303,-809.91,0.00016712,3]
[402481833,1768684252312,-500.0,0.00016712,3]
[402481835,1768684252323,-756.02,0.00016712,3]
[402481837,1768684252332,-529.4766639,0.00016712,3]
[402481839,1768684252342,-500.0,0.00016712,3]
[402481842,1768684252351,-500.0,0.00016712,3]
[402481844,1768684252362,-868.83,0.00016712,3]
[402481846,1768684252371,-969.72,0.00016712,3]
[402481848,1768684252380,-500.0,0.00016712,3]
[402481850,1768684252389,-500.0,0.00016712,3]
[402481851,1768684252399,-500.0,0.00016712,2]
[402481853,1768684252408,-1378.03,0.00016712,3]
[402481855,1768684252418,-500.0,0.00016712,3]
[402481858,1768684252427,-806.24,0.00016712,3]
[402481860,1768684252436,-500.0,0.00016712,3]
[402481861,1768684252446,-500.0,0.00016712,3]
[402481864,1768684252455,-500.0,0.00016712,3]
[402481866,1768684252464,-500.0,0.00016712,3]
[402481868,1768684252474,-500.0,0.00016712,3]
[402481870,1768684252483,-1642.54,0.00016712,3]
[402481872,1768684252492,-500.0,0.00016712,3]
[402481874,1768684252502,-500.0,0.00016712,3]
[402481876,1768684252511,-500.0,0.00016712,3]
[402481878,1768684252521,-795.63,0.00016712,3]
[402481880,1768684252530,-500.0,0.00016712,3]
[402481881,1768684252539,-523.41303574,0.00016712,3]
[402481884,1768684252549,-641.52,0.00016712,3]
[402481886,1768684252558,-877.66,0.00016712,3]
[402481887,1768684252568,-159.17857658,0.00016712,3]
[402481890,1768684252577,-500.0,0.00016712,3]
[402481891,1768684252586,-500.0,0.00016712,3]
[402481894,1768684252596,-500.0,0.00016712,3]
[402481895,1768684252605,-500.0,0.00016712,3]
[402481898,1768684252614,-500.0,0.00016712,3]
[402481900,1768684252624,-1358.52,0.00016712,3]
[402481902,1768684252633,-500.0,0.00016712,3]
[402481904,1768684252642,-863.75,0.00016712,3]
[402481906,1768684252652,-500.0,0.00016712,3]
[402481908,1768684252661,-500.0,0.00016712,3]
[402481910,1768684252671,-1182.27,0.00016712,3]
[402481912,1768684252680,-810.43,0.00016712,3]
[402481914,1768684252689,-500.0,0.00016712,3]
[402481916,1768684252698,-500.0,0.00016712,3]
[402481918,1768684252708,-403.87472748,0.00016712,3]
[402481920,1768684252720,-656.03,0.00016712,3]
[402481922,1768684252730,-500.0,0.00016712,3]
[402481924,1768684252740,-709.5,0.00016712,3]
[402481926,1768684252749,-500.0,0.00016712,3]
[402481928,1768684252758,-500.0,0.00016712,3]
[402481930,1768684252767,-500.0,0.00016712,3]
[402481932,1768684252776,-500.0,0.00016712,3]
[402481934,1768684252788,-500.0,0.00016712,3]
[402481936,1768684252798,-500.0,0.00016712,3]
[402481938,1768684252807,-500.0,0.00016712,3]
[402481940,1768684252816,-500.0,0.00016712,3]
[402481942,1768684252826,-500.0,0.00016712,3]
[402481944,1768684252836,-1043.91,0.00016712,3]
[402481946,1768684252858,-500.0,0.00016712,3]
[402481948,1768684252867,-500.0,0.00016712,3]
[402481950,1768684252877,-883.27,0.00016712,3]
[402481952,1768684252887,-500.0,0.00016712,3]
[402481955,1768684252900,-1450.03,0.00016712,3]
[402481957,1768684252919,-500.0,0.00016712,3]
[402481958,1768684252933,-754.07,0.00016712,3]
[402481960,1768684252942,-500.0,0.00016712,3]
[402481962,1768684252952,-500.0,0.00016712,3]
[402481965,1768684252964,-500.0,0.00016712,3]
[402481967,1768684252974,-500.0,0.00016712,3]
[402481969,1768684252983,-500.0,0.00016712,3]
[402481971,1768684252992,-500.0,0.00016712,3]
[402481973,1768684253002,-500.0,0.00016712,3]
[402481975,1768684253021,-946.73,0.00016712,3]
[402481977,1768684253032,-500.0,0.00016712,3]
[402481979,1768684253043,-500.0,0.00016712,3]
[402481981,1768684253054,-500.0,0.00016712,3]
[402481983,1768684253065,-500.0,0.00016712,3]
[402481984,1768684253076,-982.35,0.00016712,3]
[402481987,1768684253086,-500.0,0.00016712,3]
[402481989,1768684253096,-500.0,0.00016712,3]
[402481990,1768684253106,-500.0,0.00016712,3]
[402481992,1768684253117,-500.0,0.00016712,3]
[402481995,1768684253128,-500.0,0.00016712,3]
[402481996,1768684253139,-629.95,0.00016712,3]
[402481999,1768684253150,-500.0,0.00016712,3]
[402482000,1768684253160,-500.0,0.00016712,3]
[402482002,1768684253170,-1029.2,0.00016712,3]
[402482004,1768684253181,-781.29,0.00016712,3]
[402482006,1768684253192,-1037.36,0.00016712,3]
[402482008,1768684253203,-500.0,0.00016712,3]
[402482010,1768684253215,-500.0,0.00016712,3]
[402482012,1768684253226,-500.0,0.00016712,3]
[402482015,1768684253236,-626.96,0.00016712,3]
[402482017,1768684253248,-302.42547068,0.00016712,3]
[402482019,1768684253257,-780.86,0.00016712,3]
[402482021,1768684253267,-500.0,0.00016712,3]
[402482023,1768684253276,-500.0,0.00016712,3]
[402482025,1768684253285,-500.0,0.00016712,3]
[402482027,1768684253294,-500.0,0.00016712,3]
[402482029,1768684253304,-570.16,0.00016712,3]
[402482030,1768684253313,-500.0,0.00016712,3]
[402482033,1768684253323,-500.0,0.00016712,3]
[402482035,1768684253332,-500.0,0.00016712,3]
[402482037,1768684253342,-711.79,0.00016712,3]
[402482039,1768684253351,-500.0,0.00016712,3]
[402482041,1768684253361,-500.0,0.00016712,3]
[402482043,1768684253370,-500.0,0.00016712,3]
[402482045,1768684253380,-500.0,0.00016712,3]
[402482054,1768684253454,-500.0,0.00016712,3]
[402482056,1768684253464,-500.0,0.00016712,3]
[402482058,1768684253474,-500.0,0.00016712,3]
[402482060,1768684253483,-500.0,0.00016712,3]
[402482062,1768684253492,-500.0,0.00016712,3]
[402482064,1768684253501,-575.62,0.00016712,3]
[402482066,1768684253510,-589.82,0.00016712,3]
[402482068,1768684253519,-500.0,0.00016712,3]
[402482070,1768684253529,-500.0,0.00016712,3]
[402482072,1768684253538,-1000.0,0.00016712,2]
[402482074,1768684253547,-500.0,0.00016712,3]
[402482076,1768684253556,-1334.72,0.00016712,3]
[402482078,1768684253565,-500.0,0.00016712,3]
[402482079,1768684253574,-500.0,0.00016712,3]
[402482082,1768684253583,-500.0,0.00016712,3]
[402482083,1768684253592,-500.0,0.00016712,3]
[402482085,1768684253602,-500.0,0.00016712,3]
[402482087,1768684253611,-501.23,0.00016712,3]
[402482089,1768684253619,-500.0,0.00016712,3]
[402482091,1768684253628,-595.68293991,0.00016712,3]
[402482093,1768684253637,-750.4,0.00016712,3]
[402482095,1768684253645,-500.0,0.00016712,3]
[402482097,1768684253653,-500.0,0.00016712,3]
[402482099,1768684253661,-500.0,0.00016712,3]
[402482101,1768684253670,-500.0,0.00016712,3]
[402482103,1768684253679,-1211.51,0.00016712,3]
[402482105,1768684253689,-500.0,0.00016712,3]
[402482107,1768684253699,-503.23047835,0.00016712,3]
[402482110,1768684253708,-500.0,0.00016712,3]
[402482111,1768684253722,-500.0,0.00016712,3]
[402482113,1768684253731,-500.0,0.00016712,3]
[402482115,1768684253740,-502.72122114,0.00016712,3]
[402482118,1768684253749,-500.0,0.00016712,3]
[402482119,1768684253759,-500.0,0.00016712,3]
[402482122,1768684253768,-548.89807406,0.00016712,3]
[402482123,1768684253777,-1018.98,0.00016712,3]
[402482126,1768684253787,-500.0,0.00016712,3]
[402482127,1768684253797,-588.35,0.00016712,3]
[402482129,1768684253806,-500.0,0.00016712,3]
[402482131,1768684253815,-500.0,0.00016712,3]
[402482132,1768684253824,-799.03,0.00016712,3]
[402482133,1768684253833,-238.2368329,0.00016712,3]
[402482134,1768684253862,-261.7631671,0.00016712,3]
[402482135,1768684253870,-669.71,0.00016712,3]
[402482136,1768684253879,-500.0,0.00016712,3]
[402482137,1768684253888,-500.0,0.00016712,3]
[402482138,1768684253897,-500.0,0.00016712,3]
[402482139,1768684253906,-500.0,0.00016712,3]
[402482140,1768684253914,-500.0,0.00016712,3]
[402482141,1768684253923,-561.16,0.00016712,3]
[402482143,1768684253932,-500.0,0.00016712,3]
[402482144,1768684253941,-500.0,0.00016712,3]
[402482145,1768684253950,-1519.58,0.00016712,3]
[402482147,1768684253959,-500.0,0.00016712,3]
[402482149,1768684253968,-552.32,0.00016712,3]
[402482151,1768684253978,-500.0,0.00016712,3]
[402482153,1768684253988,-500.0,0.00016712,3]
[402482155,1768684253998,-500.0,0.00016712,3]
[402482157,1768684254007,-500.0,0.00016712,3]
[402482159,1768684254017,-1008.77,0.00016712,3]
[402482161,1768684254026,-500.0,0.00016712,3]
[402482163,1768684254035,-519.27,0.00016712,3]
[402482165,1768684254045,-500.0,0.00016712,3]
[402482167,1768684254054,-500.0,0.00016712,3]
[402482169,1768684254063,-500.0,0.00016712,3]
[402482171,1768684254073,-1224.65,0.00016712,3]
[402482173,1768684254082,-500.0,0.00016712,3]
[402482175,1768684254092,-500.0,0.00016712,3]
[402482178,1768684254101,-197.65009563,0.00016712,3]
[402482179,1768684254110,-500.0,0.00016712,3]
[402482182,1768684254120,-500.0,0.00016712,3]
[402482184,1768684254129,-500.0,0.00016712,3]
[402482185,1768684254138,-500.0,0.00016712,3]
[402482187,1768684254148,-500.0,0.00016712,3]
[402482189,1768684254157,-500.0,0.00016712,3]
[402482191,1768684254167,-500.0,0.00016712,3]
[402482193,1768684254177,-500.0,0.00016712,3]
[402482195,1768684254186,-519.91,0.00016712,3]
[402482197,1768684254195,-151.0,0.00016712,2]
[402482199,1768684254205,-500.0,0.00016712,3]
[402482201,1768684254214,-151.0,0.00016712,2]
[402482203,1768684254223,-500.0,0.00016712,3]
[402482204,1768684254232,-500.0,0.00016712,3]
[402482206,1768684254241,-151.0,0.00016712,2]
[402482208,1768684254250,-500.0,0.00016712,3]
[402482210,1768684254259,-235.183964,0.00016712,2]
[402482212,1768684254268,-738.28,0.00016712,3]
[402482214,1768684254277,-238.33114,0.00016712,3]
[402482216,1768684254286,-500.0,0.00016712,3]
[402482218,1768684254295,-500.0,0.00016712,3]
[402482220,1768684254304,-734.44,0.00016712,3]
[402482221,1768684254314,-597.61,0.00016712,3]
[402482223,1768684254323,-500.0,0.00016712,3]
[402482225,1768684254333,-500.0,0.00016712,3]
[402482227,1768684254341,-500.0,0.00016712,3]
[402482229,1768684254350,-500.0,0.00016712,3]
[402482231,1768684254359,-538.97966179,0.00016712,3]
[402482233,1768684254368,-500.0,0.00016712,3]
[402482235,1768684254378,-646.24,0.00016712,3]
[402482237,1768684254387,-579.31,0.00016712,3]
[402482239,1768684254396,-500.0,0.00016712,3]